bitfinex-derivatives/quotes_ETHF0:USTF0_20250322
["timestamp","ask_amount","ask_price","bid_price","bid_amount"]
[1742671705652,4.16192,1996.6,1996.5,1.00193]
[1742671705848,1.63896,1996.7,1996.6,1.00188]
[1742671706155,4.79896,1996.7,1996.6,1.00188]
[1742671706551,1.63896,1996.7,1996.6,1.00188]
[1742671706847,6.09016,1996.7,1996.6,2.39438]
[1742671707050,5.45306,1996.7,1996.6,2.39438]
[1742671714150,4.4512,1996.7,1996.6,2.39438]
[1742671717554,5.45303,1996.7,1996.6,2.39438]
[1742671717756,4.4512,1996.7,1996.6,2.39438]
[1742671721461,1.2912,1996.7,1996.6,2.39438]
[1742671721662,3.159,1996.8,1996.7,1.00183]
[1742671721862,4.5129,1996.8,1996.7,1.00183]
[1742671724063,5.51468,1996.8,1996.7,1.00183]
[1742671724357,4.5129,1996.8,1996.7,1.00183]
[1742671729362,4.5129,1996.8,1996.7,2.35233]
[1742671734669,1.3539,1996.8,1996.7,2.35233]
[1742671734870,1.3539,1996.8,1996.7,3.04583]
[1742671737469,1.65204,1997.1,1997.0,1.00168]
[1742671737676,5.45754,1997.1,1997.0,1.00168]
[1742671738867,6.75384,1997.1,1997.0,1.00168]
[1742671745379,1.9428,1997.1,1997.0,1.00168]
[1742671745568,0.00751785,1997.2,1997.1,1.00163]
[1742671745773,1.38061785,1997.2,1997.1,1.00163]
[1742671745976,4.53861785,1997.2,1997.1,4.20943]
[1742671746176,3.16551785,1997.2,1997.1,4.88743]
[1742671746471,3.16551785,1997.2,1997.1,6.16433]
[1742671747578,0.00751785,1997.2,1997.1,6.16433]
[1742671748578,1.33461785,1997.2,1997.1,6.16433]
[1742671751381,0.00751785,1997.2,1997.1,6.16433]
[1742671769385,0.00751785,1997.2,1997.1,2.95653]
[1742671769581,0.00751785,1997.2,1997.1,6.16433]
[1742671769997,0.00751785,1997.2,1997.1,2.95653]
[1742671770201,0.00751785,1997.2,1997.1,6.16433]
[1742671770588,0.00751785,1997.2,1997.1,2.95653]
[1742671770799,0.00751785,1997.2,1997.1,6.16433]
[1742671772400,0.00751785,1997.2,1997.1,6.8102748]
[1742671791405,0.00751785,1997.2,1997.1,3.6024748]
[1742671791605,0.00751785,1997.2,1997.1,6.8102748]
[1742671807522,2.03011785,1997.2,1997.1,6.8102748]
[1742671811821,2.03011785,1997.2,1997.1,6.1322748]
[1742671814020,2.03011785,1997.2,1997.1,5.48633]
[1742671815425,0.00751785,1997.2,1997.1,6.16183]
[1742671815722,0.00751785,1997.2,1997.1,6.80891382]
[1742671815918,2.0233,1997.4,1997.3,1.00153]
[1742671816119,4.20906,1997.9,1997.8,1.00128]
[1742671816319,1.00129,1997.8,1997.7,1.00129]
[1742671816526,7.36605,1997.9,1997.8,1.00128]
[1742671817721,4.15825,1997.9,1997.8,2.39158]
[1742671817911,5.50375,1997.9,1997.8,2.39158]
[1742671818423,4.5025,1997.9,1997.8,2.39158]
[1742671819714,5.50373,1997.9,1997.8,2.39158]
[1742671819912,1.00128,1997.8,1997.7,4.21660785]
[1742671820115,2.34678,1997.8,1997.7,0.00751785]
[1742671820925,1.00147,1997.5,1997.2,3.2078]
[1742671821230,1.00147,1997.5,1997.4,1.00146]
[1742671821526,5.71137,1997.5,1997.0,3.2078]
[1742671821729,1.0016,1997.2,1997.1,1.00159]
[1742671821926,4.1586,1997.2,1997.1,1.00159]
[1742671823026,3.157,1997.2,1997.1,1.00159]
[1742671823422,3.157,1997.2,1997.1,2.36969]
[1742671823622,3.157,1997.2,1997.1,3.06599]
[1742671824833,4.15858,1997.2,1997.1,3.06599]
[1742671825525,4.15858,1997.2,1997.1,1.3681]
[1742671825930,1.00163,1997.1,1997.0,3.2078]
[1742671828932,1.00163,1997.1,1997.0,4.20948]
[1742671829937,4.15861,1997.2,1997.1,1.00163]
[1742671833329,5.51971,1997.2,1997.1,2.33933]
[1742671834835,5.51971,1997.2,1997.1,1.3377]
[1742671835223,1.00163,1997.1,1997.0,3.2078]
[1742671835425,2.36273,1997.1,1997.0,4.5455]
[1742671840038,2.36273,1997.1,1997.0,1.3377]
[1742671840231,2.36273,1997.1,1997.0,4.5455]
[1742671841436,2.36273,1997.1,1997.0,1.3377]
[1742671841642,2.36273,1997.1,1997.0,4.5455]
[1742671842643,2.36273,1997.1,1997.0,1.3377]
[1742671842835,2.36273,1997.1,1997.0,5.2396]
[1742671843139,2.36273,1997.1,1997.0,2.0318]
[1742671843438,2.36273,1997.1,1997.0,5.2396]
[1742671847240,2.36273,1997.1,1997.0,2.0318]
[1742671847648,2.36273,1997.1,1997.0,5.2396]
[1742671850945,2.36273,1997.1,1997.0,2.0318]
[1742671851345,2.36273,1997.1,1997.0,1.3377]
[1742671858958,2.36273,1997.1,1996.8,0.642]
[1742671858959,1.00173,1996.9,1996.8,0.642]
[1742671859141,1.00183,1996.7,1996.6,4.20964]
[1742671859455,4.15883,1996.7,1996.6,3.2078]
[1742671860047,3.157,1996.7,1996.6,4.20968]
[1742671860256,1.00932785,1996.8,1996.6,4.20968]
[1742671860257,1.00932785,1996.8,1996.7,1.00183]
[1742671860548,1.00932785,1996.8,1996.7,3.72223]
[1742671860948,2.30852785,1996.8,1996.7,3.72223]
[1742671862757,1.30671785,1996.8,1996.7,3.72223]
[1742671863458,2.30849785,1996.8,1996.7,3.72223]
[1742671865851,1.30671785,1996.8,1996.7,3.72223]
[1742671867161,2.30849785,1996.8,1996.7,3.72223]
[1742671867561,2.30849785,1996.8,1996.7,2.0787]
[1742671868059,2.30849785,1996.8,1996.7,3.08053]
[1742671871060,2.30849785,1996.8,1996.7,2.0787]
[1742671872665,2.96099785,1996.8,1996.7,1.3894]
[1742671881265,1.00188,1996.6,1996.5,1.3358]
[1742671881465,4.15988,1996.6,1996.5,2.6994]
[1742671881866,5.42908,1996.6,1996.5,2.6994]
[1742671882372,5.42908,1996.6,1996.5,3.70133]
[1742671882671,5.42908,1996.6,1996.5,2.6994]
[1742671883866,5.42908,1996.6,1996.5,3.70133]
[1742671884061,5.42908,1996.6,1996.5,2.6994]
[1742671885363,5.42908,1996.6,1996.5,3.70133]
[1742671885967,5.42908,1996.6,1996.5,2.6994]
[1742671888771,5.42908,1996.6,1996.5,2.0625]
[1742671895173,5.42908,1996.6,1996.5,3.06443]
[1742671895877,5.42908,1996.6,1996.5,2.0625]
[1742671898369,5.42908,1996.6,1996.5,1.3636]
[1742671898573,1.00198,1996.4,1996.3,0.6783]
[1742671898779,1.00213,1996.1,1996.0,4.20996]
[1742671899878,2.35633,1996.1,1996.0,5.49056]
[1742671905589,2.35633,1996.1,1996.0,4.4884]
[1742671908084,2.35633,1996.1,1996.0,1.2806]
[1742671908284,2.35633,1996.1,1996.0,4.4884]
[1742671909778,1.00223,1995.9,1995.8,4.21004]
[1742671909981,1.00223,1995.9,1995.8,3.2078]
[1742671910480,3.02383,1995.9,1995.8,3.2078]
[1742671911881,2.32343,1995.9,1995.8,4.21008]
[1742671914082,2.32343,1995.9,1995.8,3.2078]
[1742671914683,2.32343,1995.9,1995.8,4.21008]
[1742671916485,2.32343,1995.9,1995.8,5.61508]
[1742671917494,2.32343,1995.9,1995.8,2.40728]
[1742671919981,5.48243,1995.9,1995.8,2.40728]
[1742671920186,3.2078,1996.4,1995.8,1.405]
[1742671920187,5.71281,1996.4,1995.8,1.405]
[1742671920387,1.00218,1996.1,1996.0,1.00216]
[1742671920789,4.16118,1996.1,1996.0,1.00216]
[1742671921697,1.00222,1996.0,1995.9,1.00219]
[1742671921898,2.31632,1996.0,1995.9,1.00219]
[1742671922597,2.96292,1996.0,1995.9,1.00219]
[1742671924801,1.00228,1995.9,1995.8,1.00226]
[1742671925004,6.13268,1995.9,1995.8,1.00226]
[1742671925304,5.48388,1995.9,1995.8,1.00226]
[1742671926099,3.159,1995.9,1995.8,1.68886]
[1742671930504,3.159,1996.1,1996.0,1.00218]
[1742671930697,2.35343,1996.1,1996.0,1.00218]
[1742671931400,1.3513,1996.1,1996.0,1.00218]
[1742671932305,2.35343,1996.1,1996.0,1.00218]
[1742671933404,2.35343,1996.1,1996.0,2.31838]
[1742671933806,1.3513,1996.1,1996.0,2.31838]
[1742671934399,4.85531,1996.2,1996.1,1.00213]
[1742671934704,4.85531,1996.2,1996.1,3.05433]
[1742671937311,3.8532,1996.2,1996.1,3.05433]
[1742671937504,3.8532,1996.2,1996.1,6.26213]
[1742671937809,3.159,1996.2,1996.1,6.26213]
[1742671938603,4.4294,1996.2,1996.1,6.26213]
[1742671939407,5.43148,1996.2,1996.1,6.26213]
[1742671940109,4.4294,1996.2,1996.1,6.26213]
[1742671940504,3.159,1996.2,1996.1,6.26213]
[1742671941214,4.5611,1996.2,1996.1,6.26213]
[1742671943403,5.56318,1996.2,1996.1,6.26213]
[1742671943807,5.56318,1996.2,1996.1,5.61333]
[1742671947113,5.56318,1996.2,1996.1,4.6112]
[1742671947917,5.56318,1996.2,1996.1,3.2078]
[1742671948214,5.56318,1996.2,1996.1,4.4804]
[1742671948416,5.56318,1996.2,1996.1,3.2078]
[1742671948617,1.00223,1995.9,1995.8,4.4804]
[1742671948807,4.16123,1995.9,1995.8,4.4804]
[1742671952718,4.16123,1995.9,1995.8,3.2078]
[1742671959931,4.16123,1995.9,1995.8,4.529]
[1742671965029,1.00238,1995.6,1995.5,3.9033]
[1742671965225,4.16138,1995.6,1995.5,3.9033]
[1742671966339,5.44588,1995.6,1995.5,6.25049]
[1742671974126,5.44588,1995.6,1995.5,3.04269]
[1742671979242,4.16138,1995.6,1995.5,3.04269]
[1742671980433,3.159,1995.6,1995.5,3.04269]
[1742671981539,4.16138,1995.6,1995.5,3.04269]
[1742671982438,3.159,1995.6,1995.5,3.04269]
[1742671984041,4.16138,1995.6,1995.5,3.04269]
[1742671995150,3.159,1995.6,1995.5,3.04269]
[1742671995450,4.16138,1995.6,1995.5,3.04269]
[1742671995755,5.48208,1995.6,1995.5,3.04269]
[1742671998654,4.4797,1995.6,1995.5,3.04269]
[1742672001349,4.4797,1995.6,1995.5,6.25049]
[1742672003054,0.00751785,1995.7,1995.6,1.00238]
[1742672003252,0.6807,1996.1,1996.0,1.00218]
[1742672003458,5.1746,1996.1,1996.0,1.00218]
[1742672003663,6.17673,1996.1,1996.0,1.00218]
[1742672003856,6.17673,1996.1,1996.0,2.39878]
[1742672010965,3.01773,1996.1,1996.0,2.39878]
[1742672011167,6.17673,1996.1,1996.0,2.39878]
[1742672014858,6.17673,1996.1,1996.0,4.6044]
[1742672015462,6.85693,1996.1,1996.0,4.6044]
[1742672015966,6.85693,1996.1,1996.0,1.3966]
[1742672025673,6.85693,1996.1,1996.0,2.39878]
[1742672027264,6.85693,1996.1,1996.0,3.09668]
[1742672027674,6.85693,1996.1,1996.0,2.0945]
[1742672029674,6.85693,1996.1,1996.0,3.09668]
[1742672031677,6.85693,1996.1,1996.0,1.3966]
[1742672034366,1.00218,1996.0,1995.9,0.00751785]
[1742672034570,2.36628,1996.0,1995.9,0.00751785]
[1742672034770,3.27583186,1996.0,1995.9,0.00751785]
[1742672036180,2.36628,1996.0,1995.9,0.00751785]
[1742672039680,2.36628,1996.0,1995.9,1.28651785]
[1742672039978,4.21742785,1996.2,1996.1,1.00213]
[1742672040174,4.49121785,1996.2,1996.1,1.00213]
[1742672040380,5.49329785,1996.2,1996.1,1.00213]
[1742672040682,5.49329785,1996.2,1996.1,2.31783]
[1742672040875,2.33529785,1996.2,1996.1,2.31783]
[1742672041075,4.49121785,1996.2,1996.1,2.31783]
[1742672041775,3.16551785,1996.2,1996.1,2.31783]
[1742672041978,46.33,1996.7,1996.1,4.5235]
[1742672042183,46.33,1996.7,1996.0,4.5506]
[1742672042184,3.158,1996.7,1996.6,1.00188]
[1742672042475,1.00183,1996.8,1996.7,1.00181]
[1742672042682,2.4603411,1997.1,1997.0,1.00168]
[1742672042875,1.65315,1997.1,1997.0,1.00168]
[1742672043076,1.00168,1997.0,1996.9,1.00169]
[1742672043680,2.38188,1997.0,1996.9,1.00169]
[1742672044277,4.15966,1997.1,1997.0,1.00168]
[1742672044481,3.158,1997.1,1997.0,1.00168]
[1742672044682,0.00751785,1997.2,1997.1,1.00163]
[1742672044873,1.00909785,1997.2,1997.1,1.00163]
[1742672045478,0.00751785,1997.2,1997.1,1.00163]
[1742672052794,2.27579785,1997.2,1997.1,1.00163]
[1742672054994,5.43279785,1997.2,1997.1,1.00163]
[1742672057299,4.43121785,1997.2,1997.1,1.00163]
[1742672057596,4.43121785,1997.2,1997.1,5.56653]
[1742672058094,3.16451785,1997.2,1997.1,5.56653]
[1742672060196,3.16451785,1997.2,1997.1,6.24923]
[1742672062394,5.48229785,1997.2,1997.1,6.24923]
[1742672063399,4.48071785,1997.2,1997.1,6.24923]
[1742672063604,4.48071785,1997.2,1997.1,3.04143]
[1742672064602,3.16451785,1997.2,1997.1,3.04143]
[1742672066298,4.51211785,1997.2,1997.1,3.04143]
[1742672067291,0.00751785,1997.2,1997.1,3.04143]
[1742672069208,0.00751785,1997.2,1997.1,2.35873]
[1742672069405,2.98399785,1997.2,1997.1,1.3571]
[1742672072005,1.00163,1997.1,1997.0,0.00751785]
[1742672072199,6.16873,1997.1,1997.0,0.00751785]
[1742672072593,7.07660636,1997.1,1997.0,0.00751785]
[1742672073299,6.16873,1997.1,1997.0,0.00751785]
[1742672074407,7.0762958,1997.1,1997.0,0.00751785]
[1742672075195,6.16873,1997.1,1997.0,0.00751785]
[1742672075899,6.16873,1997.1,1997.0,1.39071785]
[1742672077609,9.37653,1997.1,1997.0,1.39071785]
[1742672083515,11.0897746,1997.1,1997.0,1.39071785]
[1742672085515,7.8819746,1997.1,1997.0,1.39071785]
[1742672091419,6.97496005,1997.1,1997.0,1.39071785]
[1742672091619,6.16873,1997.1,1997.0,1.39071785]
[1742672095519,6.16873,1997.1,1997.0,2.39239785]
[1742672095720,6.16873,1997.1,1997.0,1.39071785]
[1742672095919,6.16873,1997.1,1997.0,2.39239785]
[1742672096121,6.16873,1997.1,1997.0,1.39071785]
[1742672098926,7.88470498,1997.1,1997.0,1.39071785]
[1742672101026,4.72870498,1997.1,1997.0,1.39071785]
[1742672101233,5.87460498,1997.1,1997.0,3.08499785]
[1742672102227,0.90847154,1997.1,1997.0,6.29279785]
[1742672103125,1.00909785,1997.2,1997.1,1.00163]
[1742672103321,1.00909785,1997.2,1997.1,2.97833]
[1742672103529,1.81743558,1997.2,1997.1,2.97833]
[1742672104124,2.72590712,1997.2,1997.1,2.97833]
[1742672105132,2.72535079,1997.2,1997.1,2.97833]
[1742672105333,1.91756939,1997.2,1997.1,2.97833]
[1742672105524,2.72535995,1997.2,1997.1,2.97833]
[1742672106325,1.91756939,1997.2,1997.1,2.97833]
[1742672106724,1.00909785,1997.2,1997.1,2.97833]
[1742672107529,2.31429785,1997.2,1997.1,2.97833]
[1742672109324,2.31429785,1997.2,1997.1,1.3272]
[1742672109528,1.00163,1997.1,1997.0,0.00751785]
[1742672109836,6.09693,1997.1,1997.0,0.00751785]
[1742672118747,7.00550853,1997.1,1997.0,0.00751785]
[1742672119251,6.09693,1997.1,1997.0,0.00751785]
[1742672119543,5.46283,1997.1,1997.0,0.00751785]
[1742672119745,5.46283,1997.1,1997.0,2.06851785]
[1742672119936,5.46283,1997.1,1997.0,2.70291785]
[1742672120946,6.27050461,1997.1,1997.0,2.70291785]
[1742672121947,7.1791725,1997.1,1997.0,2.70291785]
[1742672122949,7.1791725,1997.1,1997.0,1.41181785]
[1742672124950,7.1791725,1997.1,1997.0,0.00751785]
[1742672125147,10.3869725,1997.1,1997.0,0.00751785]
[1742672125544,1.00178,1996.8,1996.7,3.2078]
[1742672125742,4.15878,1996.8,1996.7,3.2078]
[1742672126442,4.85018,1996.8,1996.7,3.2078]
[1742672128052,1.00183,1996.7,1996.6,1.33761785]
[1742672128253,2.30423,1996.7,1996.6,1.33761785]
[1742672128650,2.30423,1996.7,1996.6,2.33949785]
[1742672128850,3.157,1996.8,1996.7,1.00183]
[1742672129157,3.157,1996.8,1996.7,2.37133]
[1742672130464,1.00166,1997.1,1997.0,1.00163]
[1742672130664,4.16166,1997.1,1997.0,1.00163]
[1742672131159,4.16166,1997.1,1997.0,2.37113]
[1742672136668,1.00166,1997.1,1997.0,2.37113]
[1742672137660,1.00912785,1997.2,1997.1,1.00163]
[1742672137857,4.16912785,1997.2,1997.1,3.07463]
[1742672138664,1.00912785,1997.2,1997.1,3.07463]
[1742672140965,0.00751785,1997.2,1997.1,3.07463]
[1742672142665,4.06642036,1997.4,1997.2,1.00158]
[1742672142870,4.06642036,1997.4,1997.3,3.01053]
[1742672143168,5.06790036,1997.4,1997.3,3.01053]
[1742672143565,4.15948,1997.4,1997.3,3.01053]
[1742672143767,1.38131785,1997.5,1997.4,1.00148]
[1742672143969,3.16751785,1997.5,1997.4,3.04708]
[1742672144665,0.6996,1997.8,1997.7,1.00133]
[1742672144865,3.16,1997.8,1997.7,1.00133]
[1742672145270,3.16,1997.8,1997.7,3.68283]
[1742672145473,1.299,1998.0,1997.9,1.00123]
[1742672145664,3.165,1998.0,1997.9,1.00123]
[1742672146676,4.16618,1998.0,1997.9,1.00123]
[1742672146976,5.51438,1998.0,1997.9,1.00123]
[1742672149270,5.51438,1998.0,1997.9,2.33453]
[1742672151779,4.5132,1998.0,1997.9,2.33453]
[1742672152375,5.51438,1998.0,1997.9,2.33453]
[1742672154782,4.16618,1998.0,1997.9,2.33453]
[1742672154975,5.47088,1998.0,1997.9,2.33453]
[1742672157973,1.3047,1998.0,1997.9,2.33453]
[1742672158380,3.86611785,1998.1,1998.0,1.00118]
[1742672158585,0.70711785,1998.1,1998.0,6.16268]
[1742672158979,2.01981785,1998.1,1998.0,6.16268]
[1742672160187,1.00095,1998.5,1998.4,1.00098]
[1742672160379,6.22015,1998.5,1998.4,1.00098]
[1742672160577,6.22015,1998.5,1998.3,1.00099]
[1742672160578,1.001,1998.4,1998.3,1.00099]
[1742672160888,2.3609,1998.4,1998.3,1.00099]
[1742672161387,0.70581785,1998.5,1998.4,1.00098]
[1742672161689,2.06571785,1998.5,1998.4,4.20878]
[1742672161884,1.36741785,1998.5,1998.4,4.20878]
[1742672162192,0.00751785,1998.5,1998.4,4.20878]
[1742672166484,1.00049,1999.4,1999.0,2.50164]
[1742672166683,1.3681,1999.3,1999.2,4.20838]
[1742672167480,2.36863,1999.3,1999.2,4.20838]
[1742672169183,1.3681,1999.3,1999.2,4.20838]
[1742672169492,2.36863,1999.3,1999.2,4.20838]
[1742672173594,2.36863,1999.3,1999.2,5.58818]
[1742672176496,2.36863,1999.3,1999.2,2.38038]
[1742672176696,1.00058,1999.2,1999.1,0.00751785]
[1742672176894,2.33118,1999.2,1999.1,0.00751785]
[1742672177289,2.33118,1999.2,1999.1,1.00814785]
[1742672177495,1.3306,1999.2,1999.1,2.38054785]
[1742672177995,1.3306,1999.2,1999.1,3.72354785]
[1742672178197,3.172,1999.3,1999.2,1.00058]
[1742672178392,2.34039785,1999.4,1999.3,1.00053]
[1742672179096,2.34039785,1999.4,1999.3,2.37293]
[1742672182695,2.34039785,1999.4,1999.3,1.3724]
[1742672183091,1.00058,1999.2,1999.1,0.00751785]
[1742672183491,1.00058,1999.2,1999.1,4.85714785]
[1742672185299,1.00058,1999.2,1999.1,4.21594785]
[1742672185894,1.00058,1999.2,1999.1,3.21531785]
[1742672186412,1.00058,1999.2,1999.1,0.00751785]
[1742672186597,4.20838,1999.2,1999.1,0.00751785]
[1742672186901,1.00058,1999.2,1999.1,0.00751785]
[1742672190005,1.00054,1999.3,1999.1,0.00751785]
[1742672190203,1.33991785,1999.4,1999.1,0.00751785]
[1742672190204,4.17658,1999.2,1999.1,4.21589785]
[1742672190804,4.17658,1999.2,1999.1,5.48459785]
[1742672192397,7.38438,1999.2,1999.1,0.00751785]
[1742672195509,8.29200182,1999.2,1999.1,0.00751785]
[1742672196816,7.38438,1999.2,1999.1,0.00751785]
[1742672199710,1.00083,1998.7,1998.6,3.8625]
[1742672200015,1.00093,1998.5,1998.4,4.20875]
[1742672200408,4.18593,1998.5,1998.4,4.20875]
[1742672201112,5.57583,1998.5,1998.4,5.58055]
[1742672202013,3.185,1998.5,1998.4,5.58055]
[1742672202408,1.3881,1998.7,1998.6,1.00088]
[1742672202609,4.5721,1998.7,1998.6,1.00088]
[1742672202808,3.184,1998.7,1998.6,4.20868]
[1742672203008,3.184,1998.7,1998.6,4.90448]
[1742672205315,1.00079,1998.8,1998.7,1.00083]
[1742672205512,1.00079,1998.8,1998.7,1.68743]
[1742672205714,1.00079,1998.8,1998.7,3.00693]
[1742672210324,3.186,1998.9,1998.8,1.00078]
[1742672210520,3.186,1998.9,1998.8,2.37778]
[1742672210718,4.18673,1998.9,1998.8,2.37778]
[1742672211923,3.186,1998.9,1998.8,2.37778]
[1742672213314,4.18673,1998.9,1998.8,2.37778]
[1742672214422,4.18673,1998.9,1998.8,5.58558]
[1742672215223,3.186,1998.9,1998.8,5.58558]
[1742672215425,4.18673,1998.9,1998.8,5.58558]
[1742672215716,5.54033,1998.9,1998.8,5.58558]
[1742672218627,4.18673,1998.9,1998.8,5.58558]
[1742672218823,5.44602,1999.0,1998.9,1.00073]
[1742672219019,4.4453,1999.0,1998.9,3.00203]
[1742672219227,1.70076,1999.1,1999.0,1.00068]
[1742672219519,5.44593,1999.1,1999.0,3.00958]
[1742672219723,4.4453,1999.1,1999.0,3.00958]
[1742672220521,5.44593,1999.1,1999.0,3.00958]
[1742672220723,5.44593,1999.1,1999.0,1.325]
[1742672225019,5.44593,1999.1,1998.8,4.20854]
[1742672225020,1.00073,1998.9,1998.8,4.20854]
[1742672225214,4.18065,1999.1,1999.0,1.00063]
[1742672225420,3.18,1999.1,1999.0,1.00063]
[1742672225727,4.18063,1999.1,1999.0,1.00063]
[1742672226429,1.3357,1999.1,1999.0,1.00063]
[1742672226727,3.182,1999.2,1999.1,1.00063]
[1742672227022,4.18258,1999.2,1999.1,3.09073]
[1742672230020,5.51658,1999.2,1999.1,3.09073]
[1742672230226,5.51658,1999.2,1999.1,2.40253]
[1742672232122,1.00075,1998.9,1998.8,1.00078]
[1742672232429,1.00075,1998.9,1998.8,2.36378]
[1742672233132,2.38075,1998.9,1998.8,2.36378]
[1742672233626,1.38,1998.9,1998.8,2.36378]
[1742672235828,1.38,1998.9,1998.8,1.363]
[1742672236026,3.04343,1998.9,1998.8,1.363]
[1742672237735,3.68503,1998.9,1998.8,1.363]
[1742672237931,3.68503,1998.9,1998.7,4.841]
[1742672237932,1.00078,1998.8,1998.7,3.2078]
[1742672238137,5.54178,1998.8,1998.7,4.4921]
[1742672238337,5.54178,1998.8,1998.7,5.49293]
[1742672239440,5.54178,1998.8,1998.7,2.28513]
[1742672239738,5.54178,1998.8,1998.7,5.49293]
[1742672244241,5.54178,1998.8,1998.7,4.4921]
[1742672245844,5.54178,1998.8,1998.7,1.2843]
[1742672246147,5.54178,1998.8,1998.7,2.28513]
[1742672246452,5.54178,1998.8,1998.7,1.2843]
[1742672246740,1.00088,1998.6,1998.5,3.2078]
[1742672246937,4.17888,1998.6,1998.5,3.2078]
[1742672247643,1.00098,1998.4,1998.3,0.00751785]
[1742672247843,4.18198,1998.4,1998.3,0.00751785]
[1742672248040,4.18198,1998.4,1997.9,4.5182]
[1742672248041,1.00118,1998.0,1997.9,4.5182]
[1742672248245,4.18318,1998.0,1997.9,1.3104]
[1742672249345,5.47868,1998.0,1997.9,1.3104]
[1742672249545,1.00123,1997.9,1997.8,0.00751785]
[1742672249746,2.29673,1997.9,1997.8,1.31791785]
[1742672250550,2.29673,1997.9,1997.8,0.00751785]
[1742672263859,4.54121785,1998.1,1997.8,0.00751785]
[1742672264058,5.45489,1998.0,1997.9,1.00123]
[1742672264458,1.00123,1997.9,1997.8,1.67086785]
[1742672264658,2.27693,1997.9,1997.8,1.67086785]
[1742672265462,2.27693,1997.9,1997.8,0.66961785]
[1742672267464,2.27693,1997.9,1997.8,0.00751785]
[1742672272065,5.48473,1997.9,1997.8,0.00751785]
[1742672274369,5.56445834,1997.9,1997.8,0.00751785]
[1742672275070,5.56445818,1997.9,1997.8,0.00751785]
[1742672276565,5.48473,1997.9,1997.8,0.00751785]
[1742672276762,6.47192494,1997.9,1997.8,0.00751785]
[1742672277269,5.48473,1997.9,1997.8,0.00751785]
[1742672278170,6.39303844,1997.9,1997.8,0.00751785]
[1742672279272,3.99286855,1997.9,1997.8,0.00751785]
[1742672280073,4.07259514,1997.9,1997.8,0.00751785]
[1742672280367,4.0725949,1997.9,1997.8,0.00751785]
[1742672280571,3.18523844,1997.9,1997.8,0.00751785]
[1742672280774,3.18523844,1997.9,1997.8,1.00879785]
[1742672280775,1.90953844,1997.9,1997.8,1.00879785]
[1742672280970,1.00123,1997.9,1997.8,1.00879785]
[1742672281270,1.00123,1997.9,1997.8,0.00751785]
[1742672281471,1.00123,1997.9,1997.8,0.64901785]
[1742672282367,1.00123,1997.9,1997.8,1.65029785]
[1742672282569,4.18123,1997.9,1997.8,0.64901785]
[1742672283775,4.18123,1997.9,1997.8,1.98681785]
[1742672285368,4.18123,1997.9,1997.8,2.98809785]
[1742672285768,4.18023,1997.9,1997.8,2.98809785]
[1742672286668,4.18023,1997.9,1997.8,1.98681785]
[1742672287769,5.52863,1997.9,1997.8,1.98681785]
[1742672290379,5.52863,1997.9,1997.8,1.34531785]
[1742672296274,6.43753439,1997.9,1997.8,1.34531785]
[1742672296887,9.64533439,1997.9,1997.8,1.34531785]
[1742672299989,10.45317805,1997.9,1997.8,1.34531785]
[1742672302993,10.53291511,1997.9,1997.8,1.34531785]
[1742672303885,7.32511511,1997.9,1997.8,1.34531785]
[1742672304084,10.53291511,1997.9,1997.8,1.34531785]
[1742672304489,10.45317805,1997.9,1997.8,1.34531785]
[1742672304692,7.24537805,1997.9,1997.8,1.34531785]
[1742672304890,10.45317805,1997.9,1997.8,1.34531785]
[1742672306496,10.53290512,1997.9,1997.8,1.34531785]
[1742672307094,1.00138,1997.6,1997.5,3.2078]
[1742672307297,4.17938,1997.6,1997.5,3.2078]
[1742672308496,5.44768,1997.6,1997.5,4.6036]
[1742672311997,5.44768,1997.6,1997.5,1.3958]
[1742672313692,6.35599861,1997.6,1997.5,1.3958]
[1742672314300,5.44768,1997.6,1997.5,1.3958]
[1742672314498,1.00143,1997.5,1997.4,0.00751785]
[1742672314693,2.36643,1997.5,1997.4,0.00751785]
[1742672315000,6.22793,1997.5,1997.4,0.00751785]
[1742672315491,7.13607382,1997.5,1997.4,0.00751785]
[1742672315696,6.22793,1997.5,1997.4,0.00751785]
[1742672315897,5.57423,1997.5,1997.4,0.00751785]
[1742672319597,2.36643,1997.5,1997.4,0.00751785]
[1742672319800,5.57423,1997.5,1997.4,0.00751785]
[1742672325706,5.57423,1997.5,1997.4,1.29221785]
[1742672326306,8.74723,1997.5,1997.4,1.29221785]
[1742672329109,1.00153,1997.3,1997.2,1.3557]
[1742672329400,4.17453,1997.3,1997.2,1.3557]
[1742672330507,5.46833,1997.3,1997.2,1.3557]
[1742672330806,5.46833,1997.3,1997.2,2.6956]
[1742672341409,5.46833,1997.3,1997.2,2.0174]
[1742672341616,5.46833,1997.3,1997.2,1.3399]
[1742672348105,5.46833,1997.3,1997.2,2.0244]
[1742672352525,5.46833,1997.3,1997.2,1.3399]
[1742672353916,6.37703467,1997.3,1997.2,1.3399]
[1742672356226,7.1847675,1997.3,1997.2,1.3399]
[1742672359627,10.3925675,1997.3,1997.2,1.3399]
[1742672362424,9.58483467,1997.3,1997.2,1.3399]
[1742672362822,10.39331463,1997.3,1997.2,1.3399]
[1742672365629,1.00158,1997.2,1997.1,0.00751785]
[1742672365830,1.00158,1997.2,1997.1,1.40411785]
[1742672365831,3.19775684,1997.2,1997.1,1.40411785]
[1742672366031,4.10646151,1997.2,1997.1,1.40411785]
[1742672366230,4.18618375,1997.2,1997.1,1.40411785]
[1742672366726,4.10646151,1997.2,1997.1,1.40411785]
[1742672366926,3.184634,1997.2,1996.9,0.6851]
[1742672367121,1.00168,1997.0,1996.9,0.6851]
[1742672367534,1.00173,1996.9,1996.8,0.6591]
[1742672367833,4.15973,1996.9,1996.8,0.6591]
[1742672371638,5.42903,1996.9,1996.8,0.6591]
[1742672383860,5.42903,1996.9,1996.8,2.0322]